Cogmind - Beta 11 @@@ ROGUE MODE // 2022.03.25 @ 19:21:29 Player: Heclapar Result: Core destroyed Performance ------------- Evolutions (0) 0 Regions Visited (2) 400 Robots Destroyed (8) 40 Value Destroyed (170) 170 Prototype IDs (0) 0 Alien Tech Used (0) 0 Bonus (0) 0 TOTAL SCORE: 610 Bonus ------- None Cogmind --------- Core Integrity 0/250 Matter 300/300 Energy 100/100 System Corruption 10% Temperature Cool (0) Movement Rolling (100) Location -10/Mines Parts ------- > --- POWER (1) -------- (None) > --- PROPULSION (2) --- Makeshift Leg Compact Wheel > --- UTILITY (2) ------ Small Storage Unit > --- WEAPON (2) ------- (None) > --- INVENTORY (8) ---- Makeshift Leg Compact Wheel Improved Heat Sink Large Storage Unit Light Assault Rifle Light Assault Rifle Datajack Peak State ------------ > --- POWER ------------ Ion Engine > --- PROPULSION ------- Makeshift Leg Makeshift Leg > --- UTILITY ---------- Small Storage Unit Visual Processing Unit > --- WEAPON ----------- Assault Rifle Light Assault Rifle > --- INVENTORY -------- Compact Wheel Compact Wheel Improved Heat Sink Large Storage Unit Light Assault Rifle Datajack [Rating: 14] Favorites ----------- Power Ion Engine Engine Ion Engine Propulsion Makeshift Leg Leg Makeshift Leg Wheel Wheel Utility Small Storage Unit Device Seismic Detector Storage Small Storage Unit Processor Visual Processing Unit Weapon Light Assault Rifle Ballistic Gun Light Assault Rifle Build | -11 -10 -10 ------- Run | Scr Mat Min Slots Evolved . | . . . Power . | . . . Propulsion . | . . . Utility . | . . . Weapon . | . . . Parts Attached 15 | 7 1 7 Power 1 | 1 . . Engine 1 | 1 . . Core . | . . . Reactor . | . . . Propulsion 8 | 2 . 6 Treads . | . . . Leg 2 | . . 2 Wheel 6 | 2 . 4 Hover . | . . . Flight . | . . . Utility 3 | 2 1 . Device 1 | 1 . . Storage 1 | 1 . . Processor 1 | . 1 . Hackware . | . . . Protection . | . . . Artifact . | . . . Weapon 3 | 2 . 1 Energy Gun . | . . . Energy Cannon . | . . . Ballistic Gun 3 | 2 . 1 Ballistic Cannon . | . . . Launcher . | . . . Special Weapon . | . . . Impact Weapon . | . . . Slashing Weapon . | . . . Piercing Weapon . | . . . Special Melee Weapon . | . . . Unidentified Prototypes . | . . . Parts Lost 4 | . . 4 Power 1 | . . 1 Propulsion . | . . . Utility 1 | . . 1 Weapon 2 | . . 2 Highest Loss Streak 1 | . . 1 To Critical Strikes . | . . . Average Slot Usage (%) 85 | . 100 82 Engine 9 | . 14 8 Leg 13 | . . 16 Wheel 14 | . 28 11 Device 2 | . 12 . Storage 14 | . 14 14 Processor 11 | . 1 14 Ballistic Gun 18 | . 28 16 Naked Turns . | . . . Heaviest Build 14 | 14 14 13 Greatest Support 40 | 20 20 40 Greatest Overweight (x) 2 | 2 . 1 Average Overweight (x) . | . . . Largest Inventory Capacity 8 | 8 8 8 Average Capacity 7 | 6 8 8 Most Carried 7 | 3 5 7 Average Carried 4 | . 2 5 Final Capacity 8 | 8 8 8 Final Carried 7 | 1 4 7 Class Distribution -------------------- 100% | Mutant Dominant Class ---------------- Mutant | -10/Materials Mutant | -10/Mines Resources | -11 -10 -10 ----------- Run | Scr Mat Min Matter Collected 507 | 286 12 209 Remotely . | . . . Salvage Created 319 | 96 12 211 Parts 14 | 4 1 9 Haulers Intercepted . | . . . Recyclers Shooed 1 | . . 1 Parts Field Recycled . | . . . Retrieved Matter . | . . . Parts Self-Destructed . | . . . Prevented . | . . . Kills | -11 -10 -10 ------- Run | Scr Mat Min Combat Hostiles Destroyed 7 | . . 7 Guns 7 | . . 7 Classes Destroyed 7 | 2 1 4 Worker 1 | . . 1 Tunneler 1 | 1 . . Recycler 2 | 1 . 1 Watcher 1 | . 1 . Grunt 2 | . . 2 Demolisher 1 | . . 1 Assembled 4 | . . 4 Best Kill Streak 4 | 2 1 4 Combat Bots Only 2 | . . 2 Max Kills in Single Turn 1 | 1 1 1 Gunslinging . | . . . Exploded . | . . . Melee . | . . . Uniques/NPCs Destroyed . | . . . Combat | -11 -10 -10 -------- Run | Scr Mat Min Damage Taken 857 | . . 857 Core 250 | . . 250 Absorbed by Shields . | . . . Core Remaining (%) 100 | 100 . . Volleys Fired 54 | 4 6 44 Largest 2 | 2 2 2 Hottest 40 | 40 40 40 Shots Fired 90 | 8 12 70 Gun 90 | 8 12 70 Cannon . | . . . Launcher . | . . . Special . | . . . Kinetic 90 | 8 12 70 Thermal . | . . . Explosive . | . . . Electromagnetic . | . . . Robot Hit Streak 6 | 4 3 6 Robot Miss Streak 5 | 1 4 5 Penetration Max . | . . . Secondary Targets 1 | . . 1 Max Gunslinging Chain 1 | . . 1 Shots Hit Robots 50 | 6 3 41 Core Hits 25 | 3 2 20 Critical Kills 1 | . . 1 Critical Parts Destroyed . | . . . Critical Strikes 1 | . . 1 Destroy 1 | . . 1 Melee Attacks . | . . . Impact . | . . . Slashing . | . . . Piercing . | . . . Sneak Attacks . | . . . Combat Hostiles . | . . . Follow-up Attacks . | . . . Damage Inflicted 534 | 57 36 441 Guns 519 | 57 36 426 Cannons . | . . . Explosions . | . . . Melee . | . . . Ramming 15 | . . 15 Kinetic 519 | 57 36 426 Thermal . | . . . Explosive . | . . . Electromagnetic . | . . . Impact . | . . . Slashing . | . . . Piercing . | . . . Highest Corruption 10 | . . 10 Average Corruption 5 | . . 5 Corruption Purged . | . . . Corruption Blocked . | . . . Effects 8 | . . 8 Message Errors 2 | . . 2 Heat Flow Errors 2 | . . 2 Energy Discharges 1 | . . 1 Data Loss (minor) 1 | . . 1 Data Loss (major) 1 | . . 1 Alerts 1 | . . 1 Overload Shots . | . . . Overflow Damage . | . . . Projectiles . | . . . Explosions . | . . . Melee . | . . . Knockbacks . | . . . Impact . | . . . Kinetic . | . . . Secondary . | . . . Self-Inflicted Damage 7 | . . 7 Shots . | . . . Rammed 2 | . . 2 Targets Rammed 2 | . . 2 Kicked . | . . . Crushed . | . . . Highest Temperature 255 | . . 255 Average Temperature 54 | . . 54 Received Heat Transfer 247 | . . 247 Siege Activations . | . . . Robots Corrupted . | . . . Combat Hostiles . | . . . Parts Fried . | . . . Impact Corruptions . | . . . Robots Melted . | . . . Combat Hostiles . | . . . Parts Melted . | . . . Heat Transferred . | . . . Parts Sabotaged . | . . . Parts Stolen . | . . . Parts Stripped . | . . . Power Chain Reactions . | . . . Missiles Intercepted . | . . . Alert | -11 -10 -10 ------- Run | Scr Mat Min Peak Influence 76 | 10 43 76 Initial 16 | . 6 16 Average 25 | 4 16 30 Maximum Alert Level . | . . . Low Security (%) 100 | 100 100 100 Level 1 . | . . . Level 2 . | . . . Level 3 . | . . . Level 4 . | . . . Level 5 . | . . . High Security . | . . . Max Security . | . . . Squads Dispatched 1 | . 1 . Investigation . | . . . Extermination . | . . . Reinforcement 1 | . 1 . Assault . | . . . Garrison . | . . . Intercept . | . . . Searches Triggered . | . . . Construction Impeded . | . . . Haulers Reinforced . | . . . Active Scanning Responses . | . . . Cargo Convoy Interrupts . | . . . Stealth | -11 -10 -10 --------- Run | Scr Mat Min Distress Signals . | . . . Communications Jammed . | . . . Distress Signals . | . . . Times Spotted 26 | . 3 23 Peak Tracking Total 10 | . 3 10 Tactical Retreats 1 | . . 1 Traps | -11 -10 -10 ------- Run | Scr Mat Min Traps Triggered . | . . . Indirectly . | . . . Trap Hack Attempts . | . . . Triggered . | . . . Disarmed . | . . . Reprogrammed . | . . . Reused . | . . . Traps Extracted . | . . . Installed . | . . . Triggered . | . . . Machines | -11 -10 -10 ---------- Run | Scr Mat Min Machines Disabled . | . . . Max in Single Turn . | . . . Machines Sabotaged . | . . . Garrisons Compromised . | . . . Overloaded Fab Kills . | . . . Hacking | -11 -10 -10 --------- Run | Scr Mat Min Machines Accessed 2 | . 1 1 Terminals 2 | . 1 1 Fabricators . | . . . Repair Stations . | . . . Recycling Units . | . . . Scanalyzers . | . . . Garrison Access . | . . . Total Hacks 4 | . 2 2 Successful 1 | . . 1 Failed 3 | . 2 1 Catastrophic . | . . . Database Lockouts . | . . . Manual 2 | . 2 . Terminals 4 | . 2 2 Fabricators . | . . . Repair Stations . | . . . Recycling Units . | . . . Scanalyzers . | . . . Garrison Access . | . . . Terminal Hacks 1 | . . 1 Zone Layout 1 | . . 1 Fabricator Hacks . | . . . Repair Station Hacks . | . . . Recycling Unit Hacks . | . . . Scanalyzer . | . . . Garrison Access Hacks . | . . . Unauthorized Hacks . | . . . Terminals . | . . . Fabricators . | . . . Repair Stations . | . . . Recycling Units . | . . . Scanalyzers . | . . . Garrison Access . | . . . Data Cores Recovered . | . . . Used . | . . . Hacking Detections 2 | . 1 1 Full Trace Events . | . . . Feedback Events . | . . . Feedback Blocked . | . . . Robot Schematics Acquired . | . . . Robots Built . | . . . Authchips . | . . . Time . | . . . Total Robot Build Rating . | . . . Part Schematics Acquired . | . . . Parts Built . | . . . Authchips . | . . . Time . | . . . Total Part Build Rating . | . . . Parts Repaired . | . . . Time . | . . . Parts Recycled . | . . . Recycled Matter . | . . . Retrieved Matter . | . . . Retrieved Components . | . . . Parts Scanalyzed . | . . . Part Schematics Acquired . | . . . Parts Damaged . | . . . Bothacking | -11 -10 -10 ------------ Run | Scr Mat Min Used RIF Installer . | . . . Robots Hacked . | . . . Non-combat . | . . . Combat . | . . . Robot Hacks Applied . | . . . Relay Couplers Released . | . . . Fabnet Peak Effective % . | . . . Robots Rewired . | . . . Allies Hacked . | . . . Hacks Repelled . | . . . Allies | -11 -10 -10 -------- Run | Scr Mat Min Total Allies 2 | . . 2 Largest Group 2 | . . 2 Highest-Rated Group 45 | . . 45 Highest-Rated Ally 31 | . . 31 Total Orders . | . . . Ally Attacks 7 | . . 7 Total Damage 84 | . . 84 Kills 1 | . . 1 Allies Corrupted . | . . . Allies Melted . | . . . Intel | -11 -10 -10 ------- Run | Scr Mat Min Robot Analysis Total . | . . . Derelict Logs Recovered 1 | . . 1 Drone Launches . | . . . Drone Recoveries . | . . . Exploration | -11 -10 -10 ------------- Run | Scr Mat Min Turns Passed 761 | 80 125 556 Spaces Moved 554 | 65 127 362 Core 10 | 8 . 2 Treads . | . . . Legs 195 | . . 195 Wheels 349 | 57 127 165 Hover . | . . . Flight . | . . . Fastest Speed 50 | 50 80 80 Average Speed 105 | 82 80 117 Slowest Speed 150 | 150 80 140 Overloaded Moves . | . . . Propulsion Burnouts . | . . . Robots Hopped . | . . . Cave-ins Triggered . | . . . Exploration Rate (%) 27 | 4 28 50 Regions Visited 2 Branch Regions 1 Pre-discovered Areas . | . . . Known Exits Taken . | . . . Unknown Exits Taken 2 | 1 1 . Scrap Searched . | . . . Spaces Dug . | . . . Terrain Destroyed . | . . . Melee . | . . . Projectile . | . . . AOE . | . . . Terrain Rammed . | . . . Walls Destroyed . | . . . Machines Disabled . | . . . Actions | -11 -10 -10 --------- Run | Scr Mat Min Total 650 | 83 139 428 Wait 7 | . 1 6 Move 552 | 64 126 362 Hop . | . . . Pick Up 17 | 8 4 5 Fast Attach . | . . . Attach 8 | 7 . 1 Detach 1 | . . 1 Swap 7 | . 1 6 Drop 3 | . 1 2 Fire 54 | 4 6 44 Melee . | . . . Ram 1 | . . 1 Kick . | . . . Crush . | . . . Escape Stasis . | . . . Rewire . | . . . Trap . | . . . Miscellaneous . | . . . Route ------- -11/Scrapyard -10/Materials -10/Mines (discovered 1 exit: [*Mat]) History --------- Turn | Location | Event 2 | -11/Scrapyard | Discovered new exit (range 16) 81 | -11/Scrapyard | Entered Materials 152 | -10/Materials | Discovered new exit (range 14) 206 | -10/Materials | Entered Mines 235 | -10/Mines | Discovered new exit (range 9) 313 | -10/Mines | Build established: Mutant 358 | -10/Mines | Assembled infested the area 363 | -10/Mines | Assisted by a Guerilla fighting off Assembled 367 | -10/Mines | Learned Materials terminal intel 548 | -10/Mines | Core integrity fell below 50% 569 | -10/Mines | Core integrity fell below 20% 762 | -10/Mines | System corruption reached 10% 762 | -10/Mines | Core destroyed Last Messages --------------- 00562_ Destroyed Asb. Hover Unit. 00568_ System corrupted: Component data lost. 00571_ as-58949 destroyed. 00573_ Acquired 17 matter. 00603_ System corrupted: Substantial component data lost. 00642_ System corrupted: Heat flow error (+280). 00660_ T-07 Excavator is excavating. 00664_ System corrupted: IFF burst signal emitted. 00665_ T-07 Excavator is excavating. 00684_ System corrupted: Energy discharge (-37). 00719_ System corrupted: Heat flow error (+177). 00747_ Acquired 5 matter. 00748_ K-01 Serf collects debris. 00751_ Extracted 5 matter. 00753_ K-01 Serf destroyed. 00761_ Slammed into as-85990. 00761_ Visual Processing Unit destroyed. 00761_ System corrupted by crushing effect (+5). 00762_ Slammed into as-85990. 00762_ Destabilizing: Core damaged (-2). Map ----- +----------------------------------------------------+ | ????????????????????????## #????#%#????###### | | ???????????????????####??## ##????#*#???## | | ??????????????????## ##??## ##?????#!#???#T | | ??????????????????# ##??# #??????# #???## < | | ?????????????????## #??# #???#### ###### | | ?????????????????# #??# ###?# | | ?????????????????# #???# ### | | ?????????????????# ##??## ####=### | | ?????????????????## ##??# ## #??# #?###### | | ??????????????????## #??# ## #??# #?????# | | ??????????????????## #??## # #??# ####### | | ????????#####????## ##???# #??# ## | | ???????## ##???# #????## #### ## #### | | ???##### #???# ##?????## ## #??# | | ??## #???# ##???????## ###### #??# | | ?## #???## ##????????#### ##????# #??## | | ## #???## ##??????????# ###?????# #???? | | #???## #??????????#"######### #???? | | ##?## #??????????#%" $#???? | | ## ## ### % ##??????????#"#########?????? | | #?# ### !% ##??????????##!## ##????????? | | #??# #?# %! =%###??????????##=% ####?????? | | ???# #?# ==##????????????# *=## # ####??? | | # * ###%|#?????????????# # # ##?? | | # =%= ##?#=!################# #?? | | # ###### #??#%=%!=!aa!=@a=%%%%%|!# # #? | | ???????## ##??#!%#############%#%## # #? | | ????????###???#%!#???????????#### # #### #? | | ??????????????# =##?????????????## ###???# ##? | | ??????????????# ##?????????????######??????###?? | | ???????######## #?????????????????????????????? | | ???????# % "#?????????????????????????????? | | ???????# ###?????????????????????????????? | | ??????# ### ##???????????????????????????????? | | ??????# ???## ##???????????????????????????????? | | ??????????## ##??????????????????????????????? | | ??????????# #??????????????????????????????? | | ??????????# #??????????????????????????????? | | ??????????## ##???????????????????###????????? | | ???????????## ####?????????????????### ##???????? | | ????????????# #????????????????##### #???????? | | ????????????# ######??????????## #???????? | | ????????????# #??????????# #????????? | | ????????????###### #??????????# #????????? | | ?????????????????# #???????????# #????????? | | ?????????????????# #???????????### #????????? | | ?????????????????# #############?## ##????????? | | ?????????????????# #??## ###?????????? | | ?????????????????############# #???# #???????????? | | ?????????????????????????????# ##### #???????????? | +----------------------------------------------------+ Best States ------------- Heat Dissipation 25 Energy Generation 10 Energy Capacity 250 Matter Stores 300 Matter Capacity 300 Sight Range 18 Terrain Scan Density 10 Evasion (%) 55 Item Schematics ----------------- None Robot Schematics ------------------ None Fabricated ------------ Nothing Alien Tech Used ----------------- None Achievements -------------- None Challenges ------------ None Game ------ Seed BeamLegBoosters Manual? 0 Play Time 00:08:47 Cumulative 15.5 hours Start 2022.03.25 @ 19:13:17 End 2022.03.25 @ 19:21:29 Sessions 1 Manual Loads 0 Difficulty Rogue Special Mode None Game No. 20 Rogue 20 Adventurer 0 Explorer 0 Win Type - Total 0 Types 0/0/0/0/0/0/0/0/0 Lore% 24 Gallery% 25 Achievement% 23 Wizard Run 0 Options --------- ASCII 0 Keyboard 0 Movement Mouse Keybinds 0 Fullscreen 2 Font 18/Terminus Map View 76x50 Tactical HUD 1 Map Filters NONE Filters NONE Steam 1 RUN: cdc156d1-a3ae-4f16-8d53-c3773c57aea2